bitfinex/quotes_BTCUSD_20250723
["timestamp","ask_amount","ask_price","bid_price","bid_amount"]
[1753291739837,0.45608357,117850.0,117840.0,0.00400001]
[1753291740766,0.45608357,117850.0,117840.0,0.00200001]
[1753291741007,0.45608357,117850.0,117840.0,1e-08]
[1753291741251,0.45608357,117850.0,117840.0,0.00100001]
[1753291741495,0.45608357,117850.0,117840.0,0.00200001]
[1753291742706,0.85608357,117850.0,117840.0,0.00200001]
[1753291743446,0.45608357,117850.0,117840.0,0.00200001]
[1753291743919,0.85608357,117850.0,117840.0,0.00200001]
[1753291748103,1.35058357,117850.0,117840.0,0.00200001]
[1753291754962,0.95058357,117850.0,117840.0,0.00200001]
[1753291756008,0.95058357,117850.0,117840.0,0.00100001]
[1753291756635,0.60113751,117850.0,117840.0,0.5648677]
[1753291756838,0.92589012,117850.0,117840.0,0.5648677]
[1753291757037,0.94333914,117850.0,117840.0,0.5638677]
[1753291757448,0.94333914,117850.0,117840.0,0.55538213]
[1753291757654,0.94333914,117850.0,117840.0,0.54689634]
[1753291758660,0.94022914,117850.0,117840.0,0.55538206]
[1753291758857,0.93814914,117850.0,117840.0,0.56386771]
[1753291759294,0.93814914,117850.0,117840.0,0.00198001]
[1753291759438,0.93485414,117850.0,117840.0,0.00198001]
[1753291759650,0.93485414,117850.0,117840.0,1e-08]
[1753291759857,0.93485414,117850.0,117840.0,0.36681768]
[1753291760282,0.93485414,117850.0,117840.0,1e-08]
[1753291760510,0.93485414,117850.0,117840.0,0.36681768]
[1753291762363,0.93485414,117850.0,117840.0,0.53653933]
[1753291762603,0.93485414,117850.0,117840.0,0.36681768]
[1753291762807,0.93485414,117850.0,117840.0,0.54502541]
[1753291763012,0.93485414,117850.0,117840.0,0.37530376]
[1753291763218,0.93485414,117850.0,117840.0,0.54502541]
[1753291763661,0.93485414,117850.0,117840.0,0.36681768]
[1753291764286,1.01933144,117850.0,117840.0,0.36681768]
[1753291764522,0.93485414,117850.0,117840.0,1e-08]
[1753291764744,0.93485414,117850.0,117840.0,0.36681768]
[1753291767769,0.93485414,117850.0,117840.0,1e-08]
[1753291767986,0.93485414,117850.0,117840.0,0.36681768]
[1753291768489,1.67237181,117850.0,117840.0,1e-08]
[1753291769434,1.30555414,117850.0,117840.0,1e-08]
[1753291770969,1.30555414,117850.0,117840.0,1e-08]
[1753291772511,1.67237181,117850.0,117840.0,1e-08]
[1753291773376,1.32787181,117850.0,117840.0,1e-08]
[1753291773628,1.42787181,117850.0,117840.0,1e-08]
[1753291774765,1.42887181,117850.0,117840.0,1e-08]
[1753291775894,1.42787181,117850.0,117840.0,1e-08]
[1753291776113,1.43287181,117850.0,117840.0,1e-08]
[1753291776352,1.06605414,117850.0,117840.0,1e-08]
[1753291776536,1.43087181,117850.0,117840.0,1e-08]
[1753291776812,1.51934911,117850.0,117840.0,1e-08]
[1753291777038,1.51934911,117850.0,117830.0,0.00016001]
[1753291777039,1.70189194,117840.0,117830.0,0.00016001]
[1753291777275,1.93456924,117840.0,117830.0,0.00016001]
[1753291777491,1.93456924,117840.0,117830.0,1e-08]
[1753291777762,1.2041239,117840.0,117830.0,1e-08]
[1753291778015,1.93775924,117840.0,117830.0,1e-08]
[1753291778452,1.57094157,117840.0,117830.0,1e-08]
[1753291779153,1.52094157,117840.0,117830.0,1e-08]
[1753291779374,1.57094157,117840.0,117830.0,1e-08]
[1753291779605,1.42670157,117840.0,117830.0,1e-08]
[1753291779837,1.57594157,117840.0,117830.0,1e-08]
[1753291781887,1.94275924,117840.0,117830.0,1e-08]
[1753291782347,2.14663924,117840.0,117830.0,1e-08]
[1753291782551,2.64113924,117840.0,117830.0,1e-08]
[1753291783775,2.64113924,117840.0,117810.0,0.0002]
[1753291783776,1.12557401,117820.0,117810.0,0.0002]
[1753291783944,1.72502898,117820.0,117810.0,0.0002]
[1753291784343,1.72821898,117820.0,117810.0,0.0002]
[1753291785146,1.72821898,117820.0,117810.0,0.00034795]
[1753291785361,1.68121898,117820.0,117810.0,0.00034795]
[1753291785510,1.73121898,117820.0,117810.0,0.00034795]
[1753291785926,1.73221898,117820.0,117810.0,0.00034795]
[1753291789292,1.36540131,117820.0,117810.0,0.00034795]
[1753291789558,1.73221898,117820.0,117810.0,0.00034795]
[1753291790110,1.73221898,117820.0,117810.0,0.00011265]
[1753291790737,1.16920131,117820.0,117810.0,0.00011265]
[1753291790966,0.91520229,117820.0,117810.0,0.36889032]
[1753291791176,0.57132229,117820.0,117810.0,0.03466265]
[1753291791384,0.57132229,117820.0,117810.0,0.40148032]
[1753291791803,0.76032229,117820.0,117810.0,0.03466265]
[1753291792021,0.74883513,117820.0,117810.0,0.40148032]
[1753291792225,0.40879513,117820.0,117810.0,0.57973343]
[1753291792441,0.40879513,117820.0,117810.0,0.40996856]
[1753291792725,0.45890085,117820.0,117810.0,0.60519728]
[1753291792927,0.5030541,117820.0,117810.0,0.60519728]
[1753291793155,0.51154147,117820.0,117810.0,0.60519728]
[1753291793388,0.7747316,117820.0,117810.0,0.40148032]
[1753291793602,0.6902543,117820.0,117810.0,0.40248032]
[1753291794044,0.6902543,117820.0,117810.0,0.03566265]
[1753291794264,0.9247316,117820.0,117810.0,0.03566265]
[1753291796971,0.9247316,117820.0,117810.0,0.03367265]
[1753291797813,1.2300816,117820.0,117810.0,0.00111265]
[1753291798440,1.7245816,117820.0,117810.0,0.00111265]
[1753291802242,1.7395816,117820.0,117810.0,0.00111265]
[1753291802457,2.11397622,117820.0,117810.0,0.00111265]
[1753291803977,1.7554816,117820.0,117810.0,0.00011265]
[1753291804636,1.7564816,117820.0,117810.0,0.00011265]
[1753291804853,1.7562816,117820.0,117810.0,0.00011265]
[1753291806575,1.4295016,117820.0,117810.0,0.00011265]
[1753291806796,1.4232416,117820.0,117810.0,0.06970019]
[1753291807014,1.40258258,117820.0,117810.0,0.06970019]
[1753291807244,1.4110301,117820.0,117810.0,0.28684132]
[1753291807682,1.41999175,117820.0,117810.0,0.28684132]
[1753291807932,1.4115043,117820.0,117810.0,0.27835323]
[1753291808146,1.40301678,117820.0,117810.0,0.10010019]
[1753291808608,1.28263847,117820.0,117810.0,0.29532891]
[1753291808830,1.23279154,117820.0,117810.0,0.65382353]
[1753291809048,1.24127891,117820.0,117810.0,0.29532906]
[1753291809317,1.24127891,117820.0,117810.0,0.30381687]
[1753291809318,1.2412787,117820.0,117810.0,0.30381687]
[1753291809546,1.63279154,117820.0,117810.0,0.29731906]
[1753291809761,1.97847847,117820.0,117810.0,0.30580679]
[1753291809990,1.98696599,117820.0,117810.0,0.29731906]
[1753291810219,1.97847898,117820.0,117810.0,0.28034323]
[1753291810448,1.97847898,117820.0,117810.0,0.03446265]
[1753291810679,1.97213175,117820.0,117810.0,0.00011265]
[1753291810915,1.99104175,117820.0,117810.0,0.00011265]
[1753291811174,2.00604175,117820.0,117810.0,0.00011265]
[1753291811393,1.60604175,117820.0,117810.0,0.00011265]
[1753291811833,1.96453637,117820.0,117810.0,0.00011265]
[1753291812047,1.60604175,117820.0,117810.0,0.00011265]
[1753291813349,1.11154175,117820.0,117810.0,0.00011265]
[1753291815822,1.47003637,117820.0,117810.0,0.00011265]
[1753291816456,1.11154175,117820.0,117810.0,0.00011265]
[1753291822073,1.52003637,117820.0,117810.0,0.00011265]
[1753291824267,1.56903637,117820.0,117810.0,0.00011265]
[1753291824512,1.62001637,117820.0,117810.0,1e-08]
[1753291824759,1.62201637,117820.0,117810.0,1e-08]
[1753291824975,1.3762766,117810.0,117800.0,1e-08]
[1753291825204,1.6084939,117810.0,117800.0,1e-08]
[1753291825413,1.6117039,117810.0,117800.0,1e-08]
[1753291825869,1.5607239,117810.0,117800.0,1e-08]
[1753291826327,1.5617239,117810.0,117800.0,1e-08]
[1753291827599,0.99426915,117760.0,117750.0,0.06762754]
[1753291827880,1.22430645,117760.0,117750.0,0.08628754]
[1753291828311,1.22430645,117760.0,117750.0,0.10238754]
[1753291828959,1.22430645,117760.0,117750.0,0.10288148]
[1753291829167,1.24193645,117760.0,117750.0,0.06812148]
[1753291829382,1.24193645,117760.0,117750.0,0.00049394]
[1753291829383,1.24489645,117760.0,117750.0,0.00049394]
[1753291829761,1.25373468,117760.0,117750.0,0.00049394]
[1753291829977,1.23823468,117760.0,117750.0,0.00049394]
[1753291830337,1.23823468,117760.0,117750.0,0.00149394]
[1753291832074,1.2641209,117760.0,117750.0,0.00149394]
[1753291833470,1.2641209,117760.0,117750.0,0.00249394]
[1753291833687,1.2640409,117760.0,117750.0,0.00465394]
[1753291835596,1.2640409,117760.0,117750.0,0.00249394]
[1753291837301,1.63161662,117760.0,117750.0,0.00249394]
[1753291837523,2.00450612,117760.0,117750.0,0.00249394]
[1753291837765,0.57548517,117750.0,117740.0,0.0002]
[1753291837977,1.17806819,117750.0,117740.0,0.00034797]
[1753291841018,1.42806819,117750.0,117740.0,1e-08]
[1753291841247,1.4196612,117750.0,117740.0,1e-08]
[1753291841474,1.06700796,117740.0,117730.0,1e-08]
[1753291841699,1.66110399,117740.0,117730.0,0.00014807]
[1753291841920,1.75017154,117740.0,117730.0,0.00014807]
[1753291842161,1.80017154,117740.0,117730.0,1e-08]
[1753291842828,1.80417154,117740.0,117730.0,1e-08]
[1753291843266,1.44500281,117740.0,117730.0,1e-08]
[1753291843501,1.85515154,117740.0,117730.0,1e-08]
[1753291843719,1.02749184,117730.0,117720.0,1e-08]
[1753291843946,0.99436439,117700.0,117690.0,0.0002]
[1753291844174,1.22633169,117700.0,117690.0,0.00250798]
[1753291844397,1.30817932,117700.0,117690.0,0.00250798]
[1753291844627,1.31113932,117700.0,117690.0,0.00034798]
[1753291845135,1.82113932,117700.0,117690.0,0.00334798]
[1753291845366,1.34303932,117700.0,117690.0,0.00334798]
[1753291846596,1.34403932,117700.0,117690.0,0.00334798]
[1753291847060,1.34403932,117700.0,117690.0,0.00034798]
[1753291847539,1.32763932,117700.0,117690.0,0.00034798]
[1753291848207,1.34263932,117700.0,117690.0,0.00034798]
[1753291848424,1.70180805,117700.0,117690.0,0.00034798]
[1753291849103,1.34263932,117700.0,117690.0,0.00034798]
[1753291849341,1.36831363,117700.0,117690.0,0.00034798]
[1753291850739,1.72748236,117700.0,117690.0,0.00034798]
[1753291850975,1.36831363,117700.0,117690.0,0.00034798]
[1753291853475,1.19245363,117700.0,117690.0,0.00034798]
[1753291853720,1.19245363,117700.0,117690.0,0.59039449]
[1753291853721,0.47582052,117700.0,117690.0,0.59039449]
[1753291853964,0.47951626,117700.0,117690.0,0.59039471]
[1753291854180,0.99793575,117700.0,117690.0,0.39496671]
[1753291854409,0.64944052,117700.0,117690.0,0.39496671]
[1753291854623,0.64944052,117700.0,117690.0,0.03579798]
[1753291854862,1.16097954,117700.0,117690.0,0.00034798]
[1753291855386,1.16097954,117700.0,117690.0,0.00434798]
[1753291855643,1.16097954,117700.0,117690.0,0.00034798]
[1753291855881,1.16097954,117700.0,117690.0,0.00332798]
[1753291856124,1.15801954,117700.0,117690.0,0.00332798]
[1753291856368,1.15801954,117700.0,117690.0,0.00232798]
[1753291856369,1.18350277,117700.0,117690.0,0.00232798]
[1753291856588,1.18668277,117700.0,117690.0,0.00232798]
[1753291856826,1.18668277,117700.0,117690.0,0.00234798]
[1753291857303,1.17669954,117700.0,117690.0,0.00034798]
[1753291857778,1.17669954,117700.0,117690.0,0.00334798]
[1753291858022,1.17669954,117700.0,117690.0,0.00134798]
[1753291859248,0.17843472,117690.0,117680.0,0.0002]
[1753291859504,0.41325202,117690.0,117680.0,0.0002]
[1753291860254,0.56325202,117690.0,117680.0,0.0002]
[1753291860529,0.58070104,117690.0,117680.0,0.0002]
[1753291860779,0.93730104,117690.0,117680.0,1e-08]
[1753291860999,1.62497168,117690.0,117680.0,1e-08]
[1753291861485,6.67497168,117690.0,117680.0,1e-08]
[1753291861703,0.49551085,117640.0,117630.0,0.28535373]
[1753291861916,0.71656815,117640.0,117630.0,0.10279065]
[1753291862127,0.70806793,117640.0,117630.0,0.2728153]
[1753291862344,0.6995675,117640.0,117630.0,0.10279065]
[1753291862586,0.6995675,117640.0,117630.0,0.28131653]
[1753291862825,0.70806793,117640.0,117630.0,0.29831863]
[1753291863033,0.55505788,117640.0,117630.0,0.67448909]
[1753291863263,0.0844773,117640.0,117630.0,0.67448909]
[1753291863499,0.00849892,117660.0,117650.0,0.19548278]
[1753291863719,0.75915246,117660.0,117650.0,0.03447]
[1753291863947,0.74799759,117660.0,117650.0,0.03447]
[1753291864145,0.76544661,117660.0,117650.0,0.03248]
[1753291864365,0.76544661,117660.0,117650.0,0.00198]
[1753291864584,0.76544661,117660.0,117650.0,0.00398]
[1753291864795,0.76544661,117660.0,117650.0,0.01978]
[1753291865012,0.76544661,117660.0,117650.0,0.02278]
[1753291865222,0.76544661,117660.0,117650.0,0.03878]
[1753291865659,0.76544661,117660.0,117650.0,0.04077]
[1753291865913,0.76544661,117660.0,117650.0,0.03878]
[1753291866401,1.25994661,117660.0,117650.0,0.00698]
[1753291866812,1.26512661,117660.0,117650.0,0.005]
[1753291867053,1.41512661,117660.0,117650.0,0.005]
[1753291867552,1.80629534,117660.0,117650.0,0.003]
[1753291867778,1.44712661,117660.0,117650.0,0.003]
[1753291867998,1.80629534,117660.0,117650.0,0.003]
[1753291868659,1.31179534,117660.0,117650.0,0.003]
[1753291869177,1.36179534,117660.0,117650.0,0.003]
[1753291869395,1.41955748,117660.0,117650.0,0.003]
[1753291869852,1.06238875,117660.0,117650.0,0.003]
[1753291870091,1.37155748,117660.0,117650.0,0.003]
[1753291870325,1.04690875,117660.0,117650.0,0.003]
[1753291870555,0.90194875,117660.0,117650.0,0.003]
[1753291870776,1.04690875,117660.0,117650.0,0.003]
[1753291870985,0.99690875,117660.0,117650.0,0.003]
[1753291871196,1.04690875,117660.0,117650.0,0.003]
[1753291871406,1.03030875,117660.0,117650.0,0.003]
[1753291872053,1.04670875,117660.0,117650.0,0.003]
[1753291872262,0.99670875,117660.0,117650.0,0.003]
[1753291872474,1.04670875,117660.0,117650.0,0.003]
[1753291872704,1.04670875,117660.0,117650.0,0.00299999]
[1753291872961,0.85174875,117660.0,117650.0,0.00299999]
[1753291873171,0.85174875,117660.0,117650.0,0.00497999]
[1753291873172,1.02708875,117660.0,117650.0,0.00497999]
[1753291873390,0.97708875,117660.0,117650.0,0.00497999]
[1753291873614,0.68216875,117660.0,117650.0,0.00497999]
[1753291873830,0.82704875,117660.0,117650.0,0.00497999]
[1753291874046,0.97704875,117660.0,117650.0,0.00497999]
[1753291874561,0.98022875,117660.0,117650.0,0.00497999]
[1753291875106,0.98022875,117660.0,117650.0,0.00299999]
[1753291877127,0.98022875,117660.0,117650.0,0.00497999]
[1753291877967,0.98018875,117660.0,117650.0,0.00299999]
[1753291878211,0.83016875,117660.0,117650.0,0.00497999]
[1753291878426,0.38977629,117660.0,117650.0,0.57633411]
[1753291878642,0.24497607,117660.0,117650.0,0.59333288]
[1753291878868,0.91675477,117660.0,117650.0,0.22566487]
[1753291879093,0.96475364,117660.0,117650.0,0.03866999]
[1753291879313,0.95425494,117660.0,117650.0,0.04716977]
[1753291879561,0.80945494,117660.0,117650.0,0.0471697]
[1753291879789,0.89775752,117660.0,117650.0,0.23416458]
[1753291880019,0.5744773,117660.0,117650.0,0.67795948]
[1753291880237,0.23773571,117660.0,117650.0,0.67795948]
[1753291880454,0.23773578,117660.0,117650.0,0.67795948]
[1753291880682,0.2292373,117660.0,117650.0,0.67795948]
[1753291881154,0.42471491,117660.0,117650.0,0.56783447]
[1753291881371,0.25473354,117660.0,117650.0,0.59333295]
[1753291881801,0.42471484,117660.0,117650.0,0.58483367]
[1753291882015,0.24623462,117660.0,117650.0,0.24266371]
[1753291882235,0.30570287,117660.0,117650.0,0.61033172]
[1753291882448,0.23773585,117660.0,117650.0,0.61033172]
[1753291882881,0.2292373,117660.0,117650.0,0.61033172]
[1753291883100,0.24623441,117660.0,117650.0,0.61033172]
[1753291883313,0.25473325,117660.0,117650.0,0.61233172]
[1753291883533,0.2632321,117660.0,117650.0,0.61233172]
[1753291883962,0.27173167,117660.0,117650.0,0.59533309]
[1753291884423,0.26323261,117660.0,117650.0,0.60383244]
[1753291884676,0.43321391,117660.0,117650.0,0.60383244]
[1753291884897,0.25473311,117660.0,117650.0,0.61233172]
[1753291885107,0.24623434,117660.0,117650.0,0.61233172]
[1753291885319,0.43321326,117660.0,117650.0,0.60383244]
[1753291885531,0.43321326,117660.0,117650.0,0.57833418]
[1753291885750,0.40771752,117660.0,117650.0,0.03867999]
[1753291886234,0.40771752,117660.0,117650.0,0.20867574]
[1753291886448,0.24623448,117660.0,117650.0,0.23417422]
[1753291886660,0.24623448,117660.0,117650.0,0.59533295]
[1753291887101,0.2547334,117660.0,117650.0,0.59533295]
[1753291887331,0.25473332,117660.0,117650.0,0.59533295]
[1753291887759,0.43321354,117660.0,117650.0,0.59533295]
[1753291887973,0.41621651,117660.0,117650.0,0.39983872]
[1753291888429,0.41621651,117660.0,117650.0,0.04066999]
[1753291888659,1.06157651,117660.0,117650.0,0.00499999]
[1753291888877,1.07902553,117660.0,117650.0,0.00499999]
[1753291889089,1.47902553,117660.0,117650.0,0.00499999]
[1753291889742,1.07902553,117660.0,117650.0,0.00299999]
[1753291889968,1.09432553,117660.0,117650.0,0.00299999]
[1753291890829,1.07902553,117660.0,117650.0,0.00299999]
[1753291891465,1.07902553,117660.0,117650.0,0.00399999]
[1753291891618,1.09492553,117660.0,117650.0,0.00399999]
[1753291892024,1.11112553,117660.0,117650.0,0.00399999]
[1753291892674,1.11112553,117660.0,117650.0,0.00299999]
[1753291894180,1.47029426,117660.0,117650.0,0.00299999]
[1753291895254,1.47129426,117660.0,117650.0,0.10299999]
[1753291895471,1.11212553,117660.0,117650.0,0.10299999]
[1753291895901,1.47129426,117660.0,117650.0,0.10299999]
[1753291896120,1.52129426,117660.0,117650.0,1e-08]
[1753291896576,1.54684826,117660.0,117650.0,1e-08]
[1753291897204,1.32653426,117660.0,117650.0,1e-08]
[1753291897422,1.47097426,117660.0,117650.0,1e-08]
[1753291897936,1.49652826,117660.0,117650.0,1e-08]
[1753291898894,6.79652826,117660.0,117650.0,1e-08]
[1753291899178,1.52145971,117640.0,117630.0,0.00069311]
[1753291899380,1.75249701,117640.0,117630.0,0.00069311]
[1753291899612,1.75569701,117640.0,117630.0,0.00069311]
[1753291901610,1.75669701,117640.0,117630.0,0.00069311]
[1753291902069,1.76535675,117640.0,117630.0,0.00069311]
[1753291903590,1.68002549,117640.0,117630.0,0.00069311]
[1753291903818,1.32085676,117640.0,117630.0,0.00069311]
[1753291904035,1.34641476,117640.0,117630.0,0.00069311]
[1753291904492,1.10451676,117640.0,117630.0,0.00069311]
[1753291904707,1.07086774,117640.0,117630.0,0.00285311]
[1753291904924,0.25263697,117640.0,117630.0,0.22157986]
[1753291905136,0.25263697,117640.0,117630.0,0.59775032]
[1753291905357,0.59545697,117640.0,117630.0,0.59974032]
[1753291905569,0.23845704,117640.0,117630.0,0.59974032]
[1753291905831,0.24695689,117640.0,117630.0,0.59974032]
[1753291906048,0.09313704,117640.0,117630.0,0.59974032]
[1753291906271,0.00865974,117640.0,117630.0,0.68421762]
[1753291906484,0.14432,117640.0,117630.0,0.59974032]
[1753291907779,0.33698065,117660.0,117640.0,0.18701042]
[1753291907780,0.15,117660.0,117640.0,0.18701042]
[1753291908005,0.2287973,117650.0,117640.0,0.57867915]
[1753291908222,0.2287973,117650.0,117640.0,0.58083915]
[1753291908438,0.24579585,117650.0,117640.0,0.58282915]
[1753291908646,0.25429542,117650.0,117640.0,0.58282915]
[1753291908867,0.26279491,117650.0,117640.0,0.58282915]
[1753291909074,0.48428517,117650.0,117640.0,0.57432936]
[1753291909276,0.31428942,117650.0,117640.0,0.59332958]
[1753291909504,0.24579592,117650.0,117640.0,0.59332958]
[1753291909950,0.23725643,117650.0,117640.0,0.59332958]
[1753291910161,0.25425527,117650.0,117640.0,0.59332958]
[1753291910370,0.2627547,117650.0,117640.0,0.59332958]
[1753291910582,0.4412506,117650.0,117640.0,0.59332965]
[1753291910787,0.4412511,117650.0,117640.0,0.59332965]
[1753291910988,0.24575578,117650.0,117640.0,0.60182965]
[1753291911199,0.2287573,117650.0,117640.0,0.60182965]
[1753291911638,0.90315884,117660.0,117650.0,0.22719423]
[1753291911855,0.64735884,117660.0,117650.0,0.59051296]
[1753291912359,0.84283638,117660.0,117650.0,0.23134423]
[1753291912577,0.68135407,117660.0,117650.0,0.59051296]
[1753291912792,0.67285508,117660.0,117650.0,0.24084358]
[1753291913012,0.68135407,117660.0,117650.0,0.24084358]
[1753291913219,0.68135407,117660.0,117650.0,0.60001231]
[1753291913444,0.85133537,117660.0,117650.0,0.58102368]
[1753291913659,0.85133537,117660.0,117650.0,0.23035452]
[1753291913866,0.85133537,117660.0,117650.0,0.23035467]
[1753291914076,0.85133537,117660.0,117650.0,0.23885416]
[1753291914288,0.66435616,117660.0,117650.0,0.24735351]
[1753291914494,0.64735884,117660.0,117650.0,0.60652181]
[1753291914709,0.65585739,117660.0,117650.0,0.68636405]
[1753291915140,0.64735884,117660.0,117650.0,0.68636405]
[1753291915343,0.64735884,117660.0,117650.0,0.60851181]
[1753291915553,0.66435587,117660.0,117650.0,0.60851181]
[1753291915769,0.67285457,117660.0,117650.0,0.60851181]
[1753291915980,0.68135349,117660.0,117650.0,0.24934308]
[1753291916194,0.68135349,117660.0,117650.0,0.60851181]
[1753291916406,0.84283682,117660.0,117650.0,0.21335546]
[1753291916619,0.92731412,117660.0,117650.0,0.2218551]
[1753291916837,0.92731412,117660.0,117650.0,0.21335546]
[1753291917118,0.91881542,117660.0,117650.0,0.21335546]
[1753291917293,0.91881542,117660.0,117650.0,0.19675546]
[1753291917515,0.90181744,117660.0,117650.0,0.01826]
[1753291917706,0.90181744,117660.0,117650.0,0.00316]
[1753291917908,0.90181744,117660.0,117650.0,0.17315575]
[1753291918115,0.90181744,117660.0,117650.0,0.18165539]
[1753291918553,0.9103165,117660.0,117650.0,0.19015481]
[1753291918709,0.91881534,117660.0,117650.0,0.22255481]
[1753291918925,0.91881534,117660.0,117650.0,0.57322412]
[1753291919162,0.91881534,117660.0,117650.0,0.58172369]
[1753291919351,0.91881534,117660.0,117650.0,0.59022318]
[1753291919524,0.91881534,117660.0,117650.0,0.5987226]
[1753291919729,0.74883361,117660.0,117650.0,0.60722188]
[1753291919947,0.75733202,117660.0,117650.0,0.60722188]
[1753291920151,0.74033469,117660.0,117650.0,0.25004315]
[1753291920354,1.01179127,117660.0,117650.0,0.01936]
[1753291920559,0.92396534,117660.0,117650.0,0.01936]
[1753291920736,0.91881534,117660.0,117650.0,0.01936]
[1753291921161,0.91881534,117660.0,117650.0,0.3959239]
[1753291921364,0.91881534,117660.0,117650.0,0.56591965]
[1753291921561,0.9103165,117660.0,117650.0,0.38742412]
[1753291922212,0.9103165,117660.0,117650.0,0.56591965]
[1753291922401,0.90165766,117660.0,117650.0,0.57441936]
[1753291922602,0.90165766,117660.0,117650.0,0.38742412]
[1753291922795,0.90165766,117660.0,117650.0,0.19785553]
[1753291923045,0.90165766,117660.0,117650.0,0.38742412]
[1753291923329,0.98613496,117660.0,117650.0,0.37122412]
[1753291923556,0.90368766,117660.0,117650.0,0.37122412]
[1753291924005,0.90680766,117660.0,117650.0,0.37122412]
[1753291924212,0.91566778,117660.0,117650.0,0.37122412]
[1753291925907,0.91051778,117660.0,117650.0,0.54971965]
[1753291926121,0.91051778,117660.0,117650.0,0.37122412]
[1753291927670,0.91254778,117660.0,117650.0,0.37122412]
[1753291927883,0.91566778,117660.0,117650.0,0.37122412]
[1753291929611,0.91566778,117660.0,117650.0,0.54121987]
[1753291929833,0.91051778,117660.0,117650.0,0.54971965]
[1753291930254,0.91051778,117660.0,117650.0,0.37122412]
[1753291931791,0.91051756,117660.0,117650.0,0.59031893]
[1753291931998,0.93601424,117660.0,117650.0,0.59031893]
[1753291932214,0.92751561,117660.0,117650.0,0.58181951]
[1753291932453,0.91901677,117660.0,117650.0,0.590319]
[1753291932671,0.91901677,117660.0,117650.0,0.59881842]
[1753291933957,0.91901677,117660.0,117650.0,0.58181951]
[1753291934337,0.91901677,117660.0,117650.0,0.59031908]
[1753291934706,0.74903547,117660.0,117650.0,0.59881843]
[1753291934907,0.91901677,117660.0,117650.0,0.60080843]
[1753291935124,0.64712012,117660.0,117650.0,0.75306771]
[1753291935334,0.50336012,117660.0,117650.0,0.83754501]
[1753291935520,0.50336012,117660.0,117650.0,0.83854501]
[1753291935929,0.50336012,117660.0,117650.0,0.75406771]
[1753291936251,0.5203573,117660.0,117650.0,0.75306771]
[1753291936464,0.5118586,117660.0,117650.0,0.75206771]
[1753291936718,0.50336012,117660.0,117650.0,0.75206771]
[1753291936925,0.50336012,117660.0,117650.0,0.75406771]
[1753291938718,0.50336012,117660.0,117650.0,0.75606771]
[1753291939304,0.90336012,117660.0,117650.0,0.75606771]
[1753291939511,0.51185853,117660.0,117650.0,0.75606771]
[1753291940217,0.52035708,117660.0,117650.0,0.75606771]
[1753291941247,0.52885578,117660.0,117650.0,0.75606771]
[1753291941455,0.51185853,117660.0,117650.0,0.75606771]
[1753291941657,0.52035701,117660.0,117650.0,0.75606771]
[1753291941989,0.50336012,117660.0,117650.0,0.75606771]
[1753291943085,0.50336012,117660.0,117650.0,0.84054501]
[1753291943486,0.50336012,117660.0,117650.0,0.75606771]
[1753291943699,0.4945,117660.0,117650.0,0.75606771]
[1753291945856,0.5032046,117660.0,117650.0,0.75606771]
[1753291946290,0.0087046,117660.0,117650.0,0.75606771]
[1753291946488,0.01699573,117670.0,117660.0,0.19547761]
[1753291946713,0.01699573,117670.0,117660.0,0.59639173]
[1753291946910,0.00849769,117670.0,117660.0,0.59639122]
[1753291947122,0.01699545,117670.0,117660.0,0.59639122]
[1753291947341,0.01699545,117670.0,117660.0,0.59838122]
[1753291947764,0.02549335,117670.0,117660.0,0.59938122]
[1753291948189,0.01699545,117670.0,117660.0,0.60038122]
[1753291948398,0.03399133,117670.0,117660.0,0.74390122]
[1753291948597,0.02549328,117670.0,117660.0,0.74390122]
[1753291948817,0.03399126,117670.0,117660.0,0.74191122]
[1753291949656,0.02549328,117670.0,117660.0,0.74191122]
[1753291950067,0.01699545,117670.0,117660.0,0.74191122]
[1753291950377,0.14352,117670.0,117660.0,0.74390122]
[1753291950577,0.10147289,117670.0,117660.0,0.55919245]
[1753291950794,0.09297499,117670.0,117660.0,0.70267245]
[1753291950997,0.2279573,117670.0,117660.0,0.73297245]
[1753291951195,0.24530193,117670.0,117660.0,0.73297245]
[1753291951617,0.24530186,117670.0,117660.0,0.73297245]
[1753291952045,0.00884687,117670.0,117660.0,0.81943975]
[1753291952247,0.00884687,117670.0,117660.0,1.04402387]
[1753291952449,0.05536977,117680.0,117670.0,0.227861]
[1753291952689,0.05536977,117680.0,117670.0,0.96613924]
[1753291952928,0.05536977,117680.0,117670.0,0.60006512]
[1753291953193,0.05536977,117680.0,117670.0,1.05260654]
[1753291953472,0.05536977,117680.0,117670.0,0.96812924]
[1753291953725,0.05549516,117680.0,117670.0,0.96812924]
[1753291953977,0.05549516,117680.0,117670.0,1.05360654]
[1753291954239,0.06426656,117680.0,117670.0,1.05360654]
[1753291954516,0.06426656,117680.0,117670.0,1.19700654]
[1753291954763,0.06426656,117680.0,117670.0,1.19600654]
[1753291955443,0.06426656,117680.0,117670.0,1.19900654]
[1753291957436,0.06426656,117680.0,117670.0,1.22428689]
[1753291957900,0.07276353,117680.0,117670.0,0.74439512]
[1753291958101,0.06426656,117680.0,117670.0,0.74439512]
[1753291958735,0.06426656,117680.0,117670.0,0.74639512]
[1753291959087,0.06426656,117680.0,117670.0,0.74838512]
[1753291959289,0.05549516,117680.0,117670.0,0.83286242]
[1753291959488,0.05549516,117680.0,117670.0,1.20092654]
[1753291960114,0.06421781,117680.0,117670.0,1.20092654]
[1753291960318,0.06421781,117680.0,117670.0,0.74631512]
[1753291960745,0.06421781,117680.0,117670.0,0.74830512]
[1753291960920,0.06421781,117680.0,117670.0,1.11636924]
[1753291961715,0.06421781,117680.0,117670.0,1.11436924]
[1753291962133,0.06421781,117680.0,117670.0,1.11736924]
[1753291963652,0.05549516,117680.0,117670.0,1.20184654]
[1753291963869,0.05549516,117680.0,117670.0,1.28632384]
[1753291965054,0.05549516,117680.0,117670.0,1.20184654]
[1753291966132,0.05549516,117680.0,117670.0,1.25184654]
[1753291967608,0.05549516,117680.0,117670.0,1.27795296]
[1753291968226,0.05549516,117680.0,117670.0,1.61795296]
[1753291968635,1e-08,117680.0,117670.0,1.63540198]
[1753291968833,1e-08,117680.0,117670.0,1.71987928]
[1753291969864,1e-08,117680.0,117670.0,1.71687928]
[1753291970627,1e-08,117680.0,117670.0,1.71371928]
[1753291972108,0.00200001,117680.0,117670.0,1.71371928]
[1753291972699,1e-08,117680.0,117670.0,1.71371928]
[1753291973419,1e-08,117680.0,117670.0,1.73924728]
[1753291975220,2.50325281,117700.0,117690.0,0.96225602]
[1753291975440,1.64849218,117700.0,117690.0,1.34575964]
[1753291975719,1.54964302,117700.0,117690.0,1.34575964]
[1753291975939,1.54964302,117700.0,117690.0,1.37124364]
[1753291976179,1.17534435,117700.0,117690.0,1.37124364]
[1753291976602,0.67842581,117700.0,117690.0,1.37124364]
[1753291976819,0.57760408,117700.0,117690.0,1.37124364]
[1753291977063,0.50746151,117700.0,117690.0,1.37124364]
[1753291977510,0.50746151,117700.0,117690.0,1.22832364]
[1753291977721,0.50846151,117700.0,117690.0,1.22832364]